{"text_format":"1","workbook":"xlsx","n_sheets":1,"sheets":["Plan1"],"not_rendered":{"charts":0,"images":1,"macros":1,"external_links":0,"defined_names":1,"comments":0,"pivot_tables":0},"unopened":[],"bounds":{"document_bytes":16777216,"sheet_cells":100000,"rows_first":2000,"rows_last":500,"rows_between":2000,"halvings":0,"cell_chars":16384,"cell_head_chars":4096},"cells_cut":0,"cells_raw":0,"read":"whole","date_system":"1900"}

{"sheet":"Plan1","index":0,"n_rows":128,"n_cols":15,"rows_kept":128,"cut":false,"hidden":false,"merged":[[0,0,4,14],[5,0,6,14],[14,0,14,2],[62,1,65,1],[73,0,73,2],[41,0,41,2],[8,0,13,1],[17,0,40,0],[42,0,42,14],[45,1,51,1],[56,1,59,1],[44,0,72,0],[15,0,15,14],[19,1,24,1],[25,1,27,1],[28,1,31,1],[32,1,35,1],[38,1,40,1],[74,0,74,16383],[70,1,72,1],[66,1,69,1],[60,1,61,1],[36,1,37,1],[52,1,55,1],[77,1,78,1],[79,1,81,1],[121,0,121,14],[126,0,126,14],[127,0,127,2],[76,0,94,0],[122,0,125,1],[99,0,115,1],[116,0,116,1],[117,0,117,14],[119,0,120,1],[96,0,96,2],[82,1,87,1],[88,1,90,1],[94,1,95,1],[91,1,93,1]]}
[]
[]
[]
[]
[]
["CONTROLE FINANCEIRO PESSOAL"]
[]
["MESES",null,null,"Janeiro","Fevereiro","Março","Abril","Maio","Junho","Julho","Agosto","Setembro","Outubro","Novembro","Dezembro"]
["RECEITAS",null,"Itens","Valor","Valor","Valor","Valor","Valor","Valor","Valor","Valor","Valor","Valor","Valor","Valor"]
[null,null,"Salário"]
[null,null,"Aluguel"]
[null,null,"Pensão"]
[null,null,"Férias "]
[null,null,"Outras "]
["Total Receitas ",null,null,{"$f":"SUM(D10:D14)","v":0},0,0,0,0,0,0,0,0,0,0,0]
[]
["MESES",null,null,"Janeiro","Fevereiro","Março","Abril","Maio","Junho","Julho","Agosto","Setembro","Outubro","Novembro","Dezembro"]
["DESPESAS\nVALORES\nFIXOS",null,"Itens","Valor","Valor","Valor","Valor","Valor","Valor","Valor","Valor","Valor","Valor","Valor","Valor"]
[null,"Investimento","Aplicações Financeiras"]
[null,"Habitação","Aluguel"]
[null,null,"Condominio"]
[null,null,"Prestação imóvel"]
[null,null,"Seguro Imóvel"]
[null,null,"Diarista"]
[null,null,"Mensalista"]
[null,"Transporte","Prestação carro"]
[null,null,"Seguro Carro"]
[null,null,"Estacionamento"]
[null,"Saúde","Plano de Saúde"]
[null,null,"Plano Odontológico"]
[null,null,"Seguro de Vida"]
[null,null,"Atend. Multiprofissional"]
[null,"Educação","Colégio"]
[null,null,"Faculdade"]
[null,null,"Especialização"]
[null,null,"Cursos"]
[null,"Serviços de Streaming","Streaming de Vídeo"]
[null,null,"Streamin de Música"]
[null,"Impostos","IPTU"]
[null,null,"IPVA"]
[null,null,"IRRF"]
["Total Despesas Fixas",null,null,{"$f":"SUM(D19:D41)","v":0},0,0,0,0,0,0,0,0,0,0,0]
[]
["MESES",null,null,"Janeiro","Fevereiro","Março","Abril","Maio","Junho","Julho","Agosto","Setembro","Outubro","Novembro","Dezembro"]
["DESPESAS\nVALORES\nVARIÁVEIS","Categoria","Itens","Valor","Valor","Valor","Valor","Valor","Valor","Valor","Valor","Valor","Valor","Valor","Valor"]
[null,"Habitação","Luz"]
[null,null,"Água"]
[null,null,"Telefone"]
[null,null,"Telefone Celular"]
[null,null,"Gás"]
[null,null,"Serviço TV"]
[null,null,"Serviço Internet"]
[null,"Transporte","Metrô/Ônibus"]
[null,null,"Combustível"]
[null,null,"Táxi"]
[null,null,"Aplicativos"]
[null,"Alimentação","Supermercado"]
[null,null,"Restaurantes"]
[null,null,"Açougue"]
[null,null,"Padaria"]
[null,"Saúde","Farmácia"]
[null,null,"Atendimento"]
[null,"Cuidados\nPessoais","Manicure"]
[null,null,"Cabelereiro"]
[null,null,"Academia"]
[null,null,"Clube"]
[null,"Animal \nEstimação","Veterinário"]
[null,null,"Banho"]
[null,null,"Tosa"]
[null,null,"Ração"]
[null,"Linhas de Crédito","Juros cheque especial"]
[null,null,"Juros cartão de crédito"]
[null,null,"Empréstimo pessoal"]
["Total Despesas Variáveis",null,null,{"$f":"SUM(D46:D73)","v":0},0,0,0,0,0,0,0,0,0,0,0]
[]
["MESES",null,null,"Janeiro","Fevereiro","Março","Abril","Maio","Junho","Julho","Agosto","Setembro","Outubro","Novembro","Dezembro"]
["DESPESAS\n EXTRAS","Categoria","Itens","Valor","Valor","Valor","Valor","Valor","Valor","Valor","Valor","Valor","Valor","Valor","Valor"]
[null,"Manuteção/Prevenção","Carro"]
[null,null,"Casa"]
[null,"Educação","Material Escolar"]
[null,null,"Uniforme"]
[null,null,"Atividades Escolares"]
[null,"Lazer","Viagens"]
[null,null,"Cinema"]
[null,null,"Restaurantes"]
[null,null,"Livraria"]
[null,null,"Shows"]
[null,null,"Jogos"]
[null,"Vestuário","Roupas"]
[null,null,"Calçados"]
[null,null,"Acessórios"]
[null,"Aquisições","Eletrônicos"]
[null,null,"Eletrodomésticos"]
[null,null,"Mobília"]
[null,"Outros","Presentes"]
[null,null,"Ajuda Financeira"]
["Total Despesas Fixas",null,null,{"$f":"SUM(D78:D96)","v":0},{"$f":"SUM(E78:E96)","v":0},0,0,0,0,0,0,0,0,0,0]
[]
["MESES",null,null,"Janeiro","Fevereiro","Março","Abril","Maio","Junho","Julho","Agosto","Setembro","Outubro","Novembro","Dezembro"]
["DESPESAS\nVISÃO GERAL",null,"Categoria","Valor","Valor","Valor","Valor","Valor","Valor","Valor","Valor","Valor","Valor","Valor","Valor"]
[null,null,"Investimento",{"$f":"SUM(D19)","v":0},0,0,0,0,0,0,0,0,0,0,0]
[null,null,"Habitação",{"$f":"SUM(D20:D25,D46:D52)","v":0},0,0,0,0,0,0,0,0,0,0,0]
[null,null,"Transporte",{"$f":"SUM(D53:D56,D26:D28)","v":0},0,0,0,0,0,0,0,0,0,0,0]
[null,null,"Saúde",{"$f":"SUM(D29:D32,D61)","v":0},0,0,0,0,0,0,0,0,0,0,0]
[null,null,"Educação",{"$f":"SUM(D33:D36,D80:D82)","v":0},0,0,0,0,0,0,0,0,0,0,0]
[null,null,{"$f":"B37","v":"Serviços de Streaming"},{"$f":"SUM(D37:D38)","v":0},0,0,0,0,0,0,0,0,0,0,0]
[null,null,"Imposto",{"$f":"SUM(D39:D41)","v":0},0,0,0,0,0,0,0,0,0,0,0]
[null,null,"Alimentação",{"$f":"SUM(D57:D60)","v":0},0,0,0,0,0,0,0,0,0,0,0]
[null,null,"Cuidados Pessoais",{"$f":"SUM(D63:D66)","v":0},0,0,0,0,0,0,0,0,0,0,0]
[null,null,"Animal Estimação",{"$f":"SUM(D67:D70)","v":0},0,0,0,0,0,0,0,0,0,0,0]
[null,null,"Linhas de Crédito",{"$f":"SUM(D71:D73)","v":0},0,0,0,0,0,0,0,0,0,0,0]
[null,null,"Manutenção/Prevenção",{"$f":"SUM(D78:D79)","v":0},0,0,0,0,0,0,0,0,0,0,0]
[null,null,"Lazer",{"$f":"SUM(D83:D88)","v":0},0,0,0,0,0,0,0,0,0,0,0]
[null,null,"Vestuário",{"$f":"SUM(D89:D91)","v":0},0,0,0,0,0,0,0,0,0,0,0]
[null,null,{"$f":"B92","v":"Aquisições"},0,{"$f":"SUM(E92:E94)","v":0},0,0,0,0,0,0,0,0,0,0]
[null,null,"Outros",0,{"$f":"SUM(E95)","v":0},0,0,0,0,0,0,0,0,0,0]
["Despesas - Visão Geral",null,null,{"$f":"SUM(D101:D116)","v":0},0,0,0,0,0,0,0,0,0,0,0]
[]
["MESES",null,null,"Janeiro","Fevereiro","Março","Abril","Maio","Junho","Julho","Agosto","Setembro","Outubro","Novembro","Dezembro"]
["RECEITAS",null,null,"Valor","Valor","Valor","Valor","Valor","Valor","Valor","Valor","Valor","Valor","Valor","Valor"]
[null,null,"Total de Receitas",{"$f":"SUM(D15)","v":0},0,0,0,0,0,0,0,0,0,0,0]
[]
["DESPESAS",null,"Despesas Valores Fixos",{"$f":"SUM(D42)","v":0},0,0,0,0,0,0,0,0,0,0,0]
[null,null,"Despesas Valores Variáveis",{"$f":"SUM(D74)","v":0},0,0,0,0,0,0,0,0,0,0,0]
[null,null,"Despesas Extras",0,{"$f":"SUM(E97)","v":0},0,{"$f":"SUM(G97)","v":0},0,0,0,0,0,0,0,0]
[null,null,"Total  de Despesas",{"$f":"SUM(D123:D125)","v":0},{"$f":"SUM(E123:E125)","v":0},{"$f":"SUM(F123:F125)","v":0},0,0,0,0,0,0,0,0,0]
[]
["SALDO FINAL",null,null,{"$f":"D121-D126","v":0},{"$f":"E121-E126","v":0},{"$f":"F121-F126","v":0},0,0,0,0,0,0,0,0,0]